[Event "Titled Tuesday Blitz May 17 Late 2022"]
[White "Nozdrachev, Leonid"]
[Black "Kobo, Ori"]
[WhiteFideId "24113433"]
[BlackFideId "2812320"]
[WhiteElo "2255"]
[BlackElo "2420"]
[Result "1-0"]
[Round "01"]
[TimeControl "180+1"]
[Date "2022.05.17"]
[WhiteClock "0:00:04"]
[BlackClock "0:00:05"]

1. e4 {[%clk 0:02:57]}  g6 {[%clk 0:02:59]} 2. f3 {[%clk 0:02:55]}  c5 {[%clk 0:02:50]} 3. c3 {[%clk 0:02:44]}  d5 {[%clk 0:02:43]} 4. d4 {[%clk 0:02:42]}  Nc6 {[%clk 0:02:22]} 5. Be3 {[%clk 0:02:40]}  Bg7 {[%clk 0:02:00]} 6. dxc5 {[%clk 0:02:37]}  Nf6 {[%clk 0:01:56]} 7. Na3 {[%clk 0:02:27]}  dxe4 {[%clk 0:01:51]} 8. Qxd8+ {[%clk 0:02:26]}  Kxd8 {[%clk 0:01:52]} 9. O-O-O+ {[%clk 0:02:25]}  Bd7 {[%clk 0:01:52]} 10. Bc4 {[%clk 0:02:19]}  Ne5 {[%clk 0:01:46]} 11. Bf4 {[%clk 0:02:03]}  Nxc4 {[%clk 0:01:41]} 12. Nxc4 {[%clk 0:02:04]}  Ke8 {[%clk 0:01:35]} 13. Be5 {[%clk 0:01:55]}  Rc8 {[%clk 0:01:27]} 14. b4 {[%clk 0:01:53]}  Be6 {[%clk 0:01:24]} 15. Rd4 {[%clk 0:01:44]}  Rg8 {[%clk 0:01:05]} 16. Kb2 {[%clk 0:01:35]}  Rd8 {[%clk 0:00:38]} 17. Na5 {[%clk 0:01:26]}  b6 {[%clk 0:00:33]} 18. Rxd8+ {[%clk 0:01:21]}  Kxd8 {[%clk 0:00:33]} 19. Nc6+ {[%clk 0:01:22]}  Kd7 {[%clk 0:00:34]} 20. Nxa7 {[%clk 0:01:22]}  bxc5 {[%clk 0:00:35]} 21. b5 {[%clk 0:01:20]}  Ng4 {[%clk 0:00:21]} 22. Bxg7 {[%clk 0:01:09]}  Nf2 {[%clk 0:00:21]} 23. Be5 {[%clk 0:01:09]}  Nd3+ {[%clk 0:00:19]} 24. Kc2 {[%clk 0:01:03]}  Nxe5 {[%clk 0:00:20]} 25. fxe4 {[%clk 0:00:53]}  Kc7 {[%clk 0:00:15]} 26. Nf3 {[%clk 0:00:50]}  Nxf3 {[%clk 0:00:14]} 27. gxf3 {[%clk 0:00:51]}  Ra8 {[%clk 0:00:14]} 28. Rb1 {[%clk 0:00:47]}  Kb6 {[%clk 0:00:12]} 29. Nc6 {[%clk 0:00:45]}  Rxa2+ {[%clk 0:00:11]} 30. Kd3 {[%clk 0:00:38]}  Rxh2 {[%clk 0:00:10]} 31. Nxe7 {[%clk 0:00:36]}  h5 {[%clk 0:00:10]} 32. Nd5+ {[%clk 0:00:32]}  Kb7 {[%clk 0:00:08]} 33. Kc4 {[%clk 0:00:26]}  h4 {[%clk 0:00:09]} 34. Kxc5 {[%clk 0:00:25]}  h3 {[%clk 0:00:09]} 35. b6 {[%clk 0:00:24]}  Ra2 {[%clk 0:00:06]} 36. Nf4 {[%clk 0:00:22]}  Bc8 {[%clk 0:00:03]} 37. Rh1 {[%clk 0:00:12]}  h2 {[%clk 0:00:04]} 38. c4 {[%clk 0:00:10]}  g5 {[%clk 0:00:02]} 39. Nd3 {[%clk 0:00:07]}  g4 {[%clk 0:00:03]} 40. fxg4 {[%clk 0:00:06]}  Bxg4 {[%clk 0:00:04]} 41. Ne5 {[%clk 0:00:06]}  Be6 {[%clk 0:00:04]} 42. Kd6 {[%clk 0:00:05]}  Rd2+ {[%clk 0:00:03]} 43. Ke7 {[%clk 0:00:05]}  Re2 {[%clk 0:00:02]} 44. Nxf7 {[%clk 0:00:04]}  Rxe4 {[%clk 0:00:02]} 45. Nd6+ {[%clk 0:00:03]}  Kxb6 {[%clk 0:00:03]} 46. Nxe4 {[%clk 0:00:04]}  Bxc4 {[%clk 0:00:03]} 47. Rxh2 {[%clk 0:00:04]}  Bd5 {[%clk 0:00:03]} 48. Nf6 {[%clk 0:00:04]}  Kc6 {[%clk 0:00:04]} 49. Nxd5 {[%clk 0:00:04]}  Kxd5 {[%clk 0:00:05]} 50. Kf6 {[%clk 0:00:04]} 1-0


[Site "https://www.chess.com"]

[Event "Titled Tuesday Blitz May 17 Late 2022"]
[White "Ozates, Tuna"]
[Black "Rasulov, Vugar"]
[WhiteFideId "6354521"]
[BlackFideId "13402390"]
[WhiteElo "1887"]
[BlackElo "2560"]
[Result "0-1"]
[Round "01"]
[TimeControl "180+1"]
[Date "2022.05.17"]
[WhiteClock "0:00:05"]
[BlackClock "0:01:38"]

1. e4 {[%clk 0:02:52]}  c5 {[%clk 0:02:59]} 2. Nf3 {[%clk 0:02:51]}  d6 {[%clk 0:02:59]} 3. Bb5+ {[%clk 0:02:51]}  Bd7 {[%clk 0:03:00]} 4. Bxd7+ {[%clk 0:02:51]}  Qxd7 {[%clk 0:03:00]} 5. O-O {[%clk 0:02:51]}  Nf6 {[%clk 0:03:01]} 6. Qe2 {[%clk 0:02:52]}  Nc6 {[%clk 0:03:01]} 7. Rd1 {[%clk 0:02:52]}  g5 {[%clk 0:03:01]} 8. c3 {[%clk 0:02:46]}  g4 {[%clk 0:03:01]} 9. Nh4 {[%clk 0:02:46]}  e6 {[%clk 0:02:56]} 10. d4 {[%clk 0:02:45]}  cxd4 {[%clk 0:02:57]} 11. cxd4 {[%clk 0:02:45]}  d5 {[%clk 0:02:57]} 12. exd5 {[%clk 0:02:43]}  Nxd5 {[%clk 0:02:52]} 13. Nc3 {[%clk 0:02:42]}  Rg8 {[%clk 0:02:46]} 14. Ne4 {[%clk 0:02:36]}  O-O-O {[%clk 0:02:43]} 15. Bg5 {[%clk 0:02:34]}  Be7 {[%clk 0:02:30]} 16. Nc5 {[%clk 0:02:27]}  Bxc5 {[%clk 0:02:25]} 17. Bxd8 {[%clk 0:02:28]}  Nxd4 {[%clk 0:02:21]} 18. Qc4 {[%clk 0:02:09]}  Qc6 {[%clk 0:02:21]} 19. Rxd4 {[%clk 0:01:41]}  Bxd4 {[%clk 0:02:21]} 20. Qxd4 {[%clk 0:01:42]}  Rxd8 {[%clk 0:02:20]} 21. Qxa7 {[%clk 0:01:42]}  f5 {[%clk 0:02:11]} 22. a4 {[%clk 0:01:33]}  Kd7 {[%clk 0:02:09]} 23. Qd4 {[%clk 0:01:30]}  Kc7 {[%clk 0:02:04]} 24. b4 {[%clk 0:01:22]}  Qc3 {[%clk 0:01:59]} 25. Qxc3+ {[%clk 0:01:16]}  Nxc3 {[%clk 0:02:00]} 26. Kf1 {[%clk 0:01:16]}  Kb6 {[%clk 0:01:56]} 27. g3 {[%clk 0:01:09]}  Rd2 {[%clk 0:01:55]} 28. Ng2 {[%clk 0:01:08]}  Ne4 {[%clk 0:01:55]} 29. Nf4 {[%clk 0:00:58]}  e5 {[%clk 0:01:55]} 30. Ne2 {[%clk 0:00:56]}  h5 {[%clk 0:01:53]} 31. Ke1 {[%clk 0:00:52]}  Rb2 {[%clk 0:01:52]} 32. b5 {[%clk 0:00:41]}  Ka5 {[%clk 0:01:53]} 33. Nc1 {[%clk 0:00:25]}  Nxf2 {[%clk 0:01:53]} 34. Ra3 {[%clk 0:00:19]}  Ne4 {[%clk 0:01:48]} 35. Nd3 {[%clk 0:00:19]}  Rxh2 {[%clk 0:01:47]} 36. Nxe5 {[%clk 0:00:19]}  h4 {[%clk 0:01:44]} 37. gxh4 {[%clk 0:00:19]}  Rxh4 {[%clk 0:01:42]} 38. Ke2 {[%clk 0:00:16]}  Rh2+ {[%clk 0:01:41]} 39. Kf1 {[%clk 0:00:15]}  g3 {[%clk 0:01:42]} 40. Nf3 {[%clk 0:00:15]}  Rf2+ {[%clk 0:01:39]} 41. Kg1 {[%clk 0:00:15]}  f4 {[%clk 0:01:40]} 42. Rb3 {[%clk 0:00:14]}  Kxa4 {[%clk 0:01:38]} 43. Nd4 {[%clk 0:00:11]}  Rd2 {[%clk 0:01:38]} 44. Rf3 {[%clk 0:00:06]}  Rxd4 {[%clk 0:01:38]} 45. Rxf4 {[%clk 0:00:07]}  Kxb5 {[%clk 0:01:38]} 46. Kg2 {[%clk 0:00:06]}  Kc4 {[%clk 0:01:39]} 47. Kh3 {[%clk 0:00:06]}  Nf2+ {[%clk 0:01:38]} 48. Kxg3 {[%clk 0:00:05]}  Rxf4 {[%clk 0:01:38]} 0-1


[Site "https://www.chess.com"]

[Event "Titled Tuesday Blitz May 17 Late 2022"]
[White "Paravyan, David"]
[Black "Dounis, Alexandros"]
[WhiteFideId "4194985"]
[BlackFideId "4213238"]
[WhiteElo "2569"]
[BlackElo "2204"]
[Result "1-0"]
[Round "01"]
[TimeControl "180+1"]
[Date "2022.05.17"]
[WhiteClock "0:00:14"]
[BlackClock "0:00:11"]

1. e4 {[%clk 0:02:55]}  e5 {[%clk 0:02:59]} 2. Nf3 {[%clk 0:02:54]}  Nc6 {[%clk 0:03:00]} 3. Nc3 {[%clk 0:02:53]}  Nf6 {[%clk 0:02:59]} 4. d4 {[%clk 0:02:53]}  exd4 {[%clk 0:02:59]} 5. Nxd4 {[%clk 0:02:53]}  Bb4 {[%clk 0:02:59]} 6. Nxc6 {[%clk 0:02:52]}  bxc6 {[%clk 0:03:00]} 7. Bd3 {[%clk 0:02:51]}  d5 {[%clk 0:03:00]} 8. exd5 {[%clk 0:02:52]}  O-O {[%clk 0:03:00]} 9. O-O {[%clk 0:02:51]}  Bg4 {[%clk 0:02:58]} 10. f3 {[%clk 0:02:50]}  Bh5 {[%clk 0:02:58]} 11. Bg5 {[%clk 0:02:50]}  Bxc3 {[%clk 0:02:50]} 12. bxc3 {[%clk 0:02:50]}  cxd5 {[%clk 0:02:48]} 13. c4 {[%clk 0:02:44]}  dxc4 {[%clk 0:02:44]} 14. Bxc4 {[%clk 0:02:43]}  Bg6 {[%clk 0:02:41]} 15. Bb3 {[%clk 0:02:39]}  Re8 {[%clk 0:02:36]} 16. Qxd8 {[%clk 0:02:37]}  Raxd8 {[%clk 0:02:36]} 17. Rad1 {[%clk 0:02:37]}  Kf8 {[%clk 0:02:30]} 18. Bf4 {[%clk 0:02:36]}  Rc8 {[%clk 0:02:19]} 19. Rfe1 {[%clk 0:02:23]}  Rxe1+ {[%clk 0:02:12]} 20. Rxe1 {[%clk 0:02:24]}  Ne8 {[%clk 0:02:12]} 21. Kf2 {[%clk 0:02:18]}  Rd8 {[%clk 0:02:09]} 22. Re5 {[%clk 0:02:17]}  Nd6 {[%clk 0:01:40]} 23. Rc5 {[%clk 0:02:14]}  Rd7 {[%clk 0:01:38]} 24. Ba4 {[%clk 0:02:13]}  Nb7 {[%clk 0:01:01]} 25. Rc3 {[%clk 0:02:01]}  Rd4 {[%clk 0:00:53]} 26. Bc6 {[%clk 0:01:55]}  Nd6 {[%clk 0:00:48]} 27. Be3 {[%clk 0:01:51]}  Rc4 {[%clk 0:00:44]} 28. Rxc4 {[%clk 0:01:50]}  Nxc4 {[%clk 0:00:45]} 29. Bxa7 {[%clk 0:01:46]}  Bxc2 {[%clk 0:00:44]} 30. Bc5+ {[%clk 0:01:46]}  Kg8 {[%clk 0:00:44]} 31. Ke2 {[%clk 0:01:38]}  Ne5 {[%clk 0:00:26]} 32. Bb5 {[%clk 0:01:20]}  c6 {[%clk 0:00:24]} 33. Ba6 {[%clk 0:01:19]}  Ba4 {[%clk 0:00:21]} 34. Ke3 {[%clk 0:01:14]}  f6 {[%clk 0:00:20]} 35. Kd4 {[%clk 0:01:12]}  Kf7 {[%clk 0:00:20]} 36. f4 {[%clk 0:01:11]}  Nd7 {[%clk 0:00:20]} 37. Bc4+ {[%clk 0:01:11]}  Ke8 {[%clk 0:00:16]} 38. Bd6 {[%clk 0:01:11]}  g6 {[%clk 0:00:12]} 39. g3 {[%clk 0:01:11]}  h6 {[%clk 0:00:09]} 40. Be6 {[%clk 0:01:06]}  Kd8 {[%clk 0:00:08]} 41. h4 {[%clk 0:01:01]}  g5 {[%clk 0:00:08]} 42. Kc4 {[%clk 0:00:44]}  gxh4 {[%clk 0:00:08]} 43. gxh4 {[%clk 0:00:44]}  Bd1 {[%clk 0:00:08]} 44. Kb4 {[%clk 0:00:43]}  Nb6 {[%clk 0:00:07]} 45. Kc5 {[%clk 0:00:39]}  Na4+ {[%clk 0:00:08]} 46. Kxc6 {[%clk 0:00:38]}  Nc3 {[%clk 0:00:08]} 47. f5 {[%clk 0:00:36]}  Ne4 {[%clk 0:00:07]} 48. Bf4 {[%clk 0:00:34]}  Ba4+ {[%clk 0:00:05]} 49. Kd5 {[%clk 0:00:34]}  Nc3+ {[%clk 0:00:05]} 50. Kc5 {[%clk 0:00:30]}  Ne2 {[%clk 0:00:05]} 51. Bxh6 {[%clk 0:00:29]}  Ng3 {[%clk 0:00:04]} 52. Bf4 {[%clk 0:00:26]}  Nh5 {[%clk 0:00:04]} 53. Bd6 {[%clk 0:00:24]}  Bc2 {[%clk 0:00:05]} 54. Bf7 {[%clk 0:00:15]}  Ng7 {[%clk 0:00:05]} 55. h5 {[%clk 0:00:16]}  Nxf5 {[%clk 0:00:05]} 56. Bg6 {[%clk 0:00:16]}  Nh6 {[%clk 0:00:05]} 57. Bxc2 {[%clk 0:00:15]}  Kd7 {[%clk 0:00:04]} 58. Ba4+ {[%clk 0:00:15]}  Ke6 {[%clk 0:00:05]} 59. Bb3+ {[%clk 0:00:16]}  Kf5 {[%clk 0:00:05]} 60. a4 {[%clk 0:00:16]}  Kg5 {[%clk 0:00:05]} 61. a5 {[%clk 0:00:16]}  Nf7 {[%clk 0:00:05]} 62. a6 {[%clk 0:00:17]}  Nd8 {[%clk 0:00:05]} 63. a7 {[%clk 0:00:17]}  Nb7+ {[%clk 0:00:05]} 64. Kd5 {[%clk 0:00:17]}  Na5 {[%clk 0:00:06]} 65. Bd1 {[%clk 0:00:18]}  Nc6 {[%clk 0:00:05]} 66. Kxc6 {[%clk 0:00:18]}  f5 {[%clk 0:00:06]} 67. a8=Q {[%clk 0:00:18]}  Kh4 {[%clk 0:00:06]} 68. Qd8+ {[%clk 0:00:18]}  Kh3 {[%clk 0:00:06]} 69. h6 {[%clk 0:00:15]}  Kg2 {[%clk 0:00:07]} 70. h7 {[%clk 0:00:15]}  Kh1 {[%clk 0:00:08]} 71. Qh4+ {[%clk 0:00:15]}  Kg2 {[%clk 0:00:09]} 72. Qg3+ {[%clk 0:00:15]}  Kf1 {[%clk 0:00:10]} 73. Bc5 {[%clk 0:00:13]}  f4 {[%clk 0:00:11]} 74. Qf2# {[%clk 0:00:14]} 1-0


[Site "https://www.chess.com"]

[Event "Titled Tuesday Blitz May 17 Late 2022"]
[White "Shapiro, David"]
[Black "Oparin, Grigoriy"]
[WhiteFideId "24133523"]
[BlackFideId "24125890"]
[WhiteElo "2300"]
[BlackElo "2665"]
[Result "0-1"]
[Round "01"]
[TimeControl "180+1"]
[Date "2022.05.17"]
[WhiteClock "0:00:07"]
[BlackClock "0:01:25"]

1. d4 {[%clk 0:02:14]}  Nf6 {[%clk 0:02:54]} 2. c4 {[%clk 0:02:14]}  e6 {[%clk 0:02:55]} 3. Nf3 {[%clk 0:02:14]}  c5 {[%clk 0:02:55]} 4. e3 {[%clk 0:02:13]}  b6 {[%clk 0:02:53]} 5. Nc3 {[%clk 0:02:13]}  Bb7 {[%clk 0:02:53]} 6. Be2 {[%clk 0:02:14]}  cxd4 {[%clk 0:02:53]} 7. exd4 {[%clk 0:02:14]}  Bb4 {[%clk 0:02:53]} 8. O-O {[%clk 0:02:14]}  O-O {[%clk 0:02:53]} 9. Qc2 {[%clk 0:02:14]}  d5 {[%clk 0:02:52]} 10. Bg5 {[%clk 0:02:09]}  h6 {[%clk 0:02:49]} 11. Bxf6 {[%clk 0:02:07]}  Qxf6 {[%clk 0:02:50]} 12. cxd5 {[%clk 0:02:08]}  Bxc3 {[%clk 0:02:50]} 13. bxc3 {[%clk 0:02:07]}  Bxd5 {[%clk 0:02:51]} 14. Ne5 {[%clk 0:02:07]}  Rd8 {[%clk 0:02:43]} 15. Bf3 {[%clk 0:02:07]}  Bxf3 {[%clk 0:02:39]} 16. Nxf3 {[%clk 0:02:08]}  Nc6 {[%clk 0:02:39]} 17. Qe4 {[%clk 0:02:08]}  Rac8 {[%clk 0:02:39]} 18. Rac1 {[%clk 0:02:01]}  Na5 {[%clk 0:02:35]} 19. Ne5 {[%clk 0:02:02]}  Nc4 {[%clk 0:02:35]} 20. Nxc4 {[%clk 0:01:57]}  Rxc4 {[%clk 0:02:36]} 21. Qb7 {[%clk 0:01:57]}  Ra4 {[%clk 0:02:35]} 22. Rc2 {[%clk 0:01:43]}  Rd5 {[%clk 0:02:35]} 23. Rd1 {[%clk 0:01:31]}  Rda5 {[%clk 0:02:27]} 24. c4 {[%clk 0:01:29]}  Rxa2 {[%clk 0:02:23]} 25. Rxa2 {[%clk 0:01:30]}  Rxa2 {[%clk 0:02:23]} 26. Qa8+ {[%clk 0:01:24]}  Kh7 {[%clk 0:02:23]} 27. Qe4+ {[%clk 0:01:25]}  g6 {[%clk 0:02:22]} 28. Qe3 {[%clk 0:01:25]}  Qf5 {[%clk 0:02:15]} 29. h3 {[%clk 0:01:13]}  Qc2 {[%clk 0:01:55]} 30. Qf3 {[%clk 0:01:13]}  Kg7 {[%clk 0:01:50]} 31. d5 {[%clk 0:01:13]}  exd5 {[%clk 0:01:42]} 32. cxd5 {[%clk 0:01:14]}  Ra3 {[%clk 0:01:42]} 33. Qg4 {[%clk 0:01:05]}  Ra4 {[%clk 0:01:39]} 34. Qf3 {[%clk 0:00:59]}  Rf4 {[%clk 0:01:35]} 35. Qd3 {[%clk 0:00:33]}  Qxd3 {[%clk 0:01:35]} 36. Rxd3 {[%clk 0:00:33]}  Kf8 {[%clk 0:01:36]} 37. d6 {[%clk 0:00:32]}  Ke8 {[%clk 0:01:36]} 38. Re3+ {[%clk 0:00:32]}  Kd7 {[%clk 0:01:32]} 39. Re7+ {[%clk 0:00:33]}  Kxd6 {[%clk 0:01:32]} 40. Rxa7 {[%clk 0:00:34]}  b5 {[%clk 0:01:32]} 41. g3 {[%clk 0:00:31]}  Rf5 {[%clk 0:01:33]} 42. Kg2 {[%clk 0:00:26]}  b4 {[%clk 0:01:30]} 43. Rb7 {[%clk 0:00:25]}  Kc5 {[%clk 0:01:31]} 44. g4 {[%clk 0:00:25]}  Rf4 {[%clk 0:01:29]} 45. Kg3 {[%clk 0:00:25]}  g5 {[%clk 0:01:29]} 46. h4 {[%clk 0:00:26]}  Kc4 {[%clk 0:01:25]} 47. Rb6 {[%clk 0:00:24]}  f6 {[%clk 0:01:25]} 48. Rb8 {[%clk 0:00:13]}  b3 {[%clk 0:01:25]} 49. Rh8 {[%clk 0:00:07]}  b2 {[%clk 0:01:25]} 0-1


[Site "https://www.chess.com"]

[Event "Titled Tuesday Blitz May 17 Late 2022"]
[White "Shimanov, Aleksandr"]
[Black "Derraugh, Geordie"]
[WhiteFideId "4198603"]
[BlackFideId "2603950"]
[WhiteElo "2605"]
[BlackElo "2116"]
[Result "1-0"]
[Round "01"]
[TimeControl "180+1"]
[Date "2022.05.17"]
[WhiteClock "0:00:52"]
[BlackClock "0:00:18"]

1. e4 {[%clk 0:02:54]}  c5 {[%clk 0:02:59]} 2. Nf3 {[%clk 0:02:44]}  d6 {[%clk 0:02:59]} 3. d4 {[%clk 0:02:44]}  cxd4 {[%clk 0:03:00]} 4. Qxd4 {[%clk 0:02:45]}  Nc6 {[%clk 0:03:00]} 5. Bb5 {[%clk 0:02:44]}  Bd7 {[%clk 0:03:00]} 6. Qd3 {[%clk 0:02:43]}  Nf6 {[%clk 0:02:53]} 7. Bg5 {[%clk 0:02:42]}  e6 {[%clk 0:02:52]} 8. Nc3 {[%clk 0:02:41]}  Qc7 {[%clk 0:02:46]} 9. O-O-O {[%clk 0:02:40]}  O-O-O {[%clk 0:02:42]} 10. Nd4 {[%clk 0:02:27]}  Ne5 {[%clk 0:02:30]} 11. Qe2 {[%clk 0:02:18]}  a6 {[%clk 0:02:27]} 12. Bxd7+ {[%clk 0:02:17]}  Nexd7 {[%clk 0:02:28]} 13. f4 {[%clk 0:02:17]}  Be7 {[%clk 0:02:26]} 14. Kb1 {[%clk 0:02:08]}  Kb8 {[%clk 0:02:26]} 15. Rhe1 {[%clk 0:02:04]}  h6 {[%clk 0:02:19]} 16. Bh4 {[%clk 0:01:58]}  Nc5 {[%clk 0:02:14]} 17. Bf2 {[%clk 0:01:42]}  Rc8 {[%clk 0:02:03]} 18. f5 {[%clk 0:01:40]}  Qa5 {[%clk 0:01:58]} 19. fxe6 {[%clk 0:01:38]}  fxe6 {[%clk 0:01:58]} 20. e5 {[%clk 0:01:34]}  Nd5 {[%clk 0:01:46]} 21. Nxd5 {[%clk 0:01:32]}  exd5 {[%clk 0:01:47]} 22. Nf5 {[%clk 0:01:31]}  Bg5 {[%clk 0:00:47]} 23. Rxd5 {[%clk 0:01:23]}  Qb4 {[%clk 0:00:40]} 24. a3 {[%clk 0:01:19]}  Qf4 {[%clk 0:00:40]} 25. Nxd6 {[%clk 0:01:18]}  Rc6 {[%clk 0:00:36]} 26. Bxc5 {[%clk 0:01:18]}  Qxh2 {[%clk 0:00:26]} 27. Nf7 {[%clk 0:01:09]}  Rhc8 {[%clk 0:00:25]} 28. Bd6+ {[%clk 0:01:08]}  Ka8 {[%clk 0:00:25]} 29. c3 {[%clk 0:01:05]}  Bh4 {[%clk 0:00:22]} 30. Red1 {[%clk 0:01:03]}  Qg3 {[%clk 0:00:22]} 31. e6 {[%clk 0:01:02]}  Qg6+ {[%clk 0:00:22]} 32. Ka1 {[%clk 0:01:02]}  Re8 {[%clk 0:00:22]} 33. Re5 {[%clk 0:00:55]}  Rcc8 {[%clk 0:00:22]} 34. Bb4 {[%clk 0:00:54]}  Bf6 {[%clk 0:00:22]} 35. Re4 {[%clk 0:00:52]}  Qf5 {[%clk 0:00:18]} 36. Nd6 {[%clk 0:00:52]} 1-0


[Site "https://www.chess.com"]

[Event "Titled Tuesday Blitz May 17 Late 2022"]
[White "Sjugirov, Sanan"]
[Black "Vujic, Mihailo"]
[WhiteFideId "4189302"]
[BlackFideId "918873"]
[WhiteElo "2602"]
[BlackElo "2256"]
[Result "1-0"]
[Round "01"]
[TimeControl "180+1"]
[Date "2022.05.17"]
[WhiteClock "0:01:17"]
[BlackClock "0:00:32"]

1. e4 {[%clk 0:03:00]}  e5 {[%clk 0:02:59]} 2. Nf3 {[%clk 0:03:00]}  Nc6 {[%clk 0:03:00]} 3. Bb5 {[%clk 0:03:00]}  f5 {[%clk 0:02:59]} 4. d3 {[%clk 0:03:00]}  fxe4 {[%clk 0:03:00]} 5. dxe4 {[%clk 0:03:00]}  Nf6 {[%clk 0:03:00]} 6. O-O {[%clk 0:03:00]}  Bc5 {[%clk 0:03:00]} 7. Bxc6 {[%clk 0:03:00]}  bxc6 {[%clk 0:03:00]} 8. Nxe5 {[%clk 0:03:01]}  O-O {[%clk 0:02:59]} 9. Nc3 {[%clk 0:03:00]}  d6 {[%clk 0:03:00]} 10. Nd3 {[%clk 0:03:00]}  Bb6 {[%clk 0:03:00]} 11. Bg5 {[%clk 0:02:51]}  h6 {[%clk 0:02:59]} 12. Bxf6 {[%clk 0:02:47]}  Qxf6 {[%clk 0:03:00]} 13. Na4 {[%clk 0:02:46]}  Be6 {[%clk 0:02:26]} 14. Nxb6 {[%clk 0:02:34]}  cxb6 {[%clk 0:02:18]} 15. f3 {[%clk 0:02:10]}  d5 {[%clk 0:02:11]} 16. exd5 {[%clk 0:02:07]}  Bxd5 {[%clk 0:02:10]} 17. b3 {[%clk 0:01:54]}  Rae8 {[%clk 0:02:08]} 18. Qd2 {[%clk 0:01:52]}  Qg6 {[%clk 0:02:01]} 19. Kh1 {[%clk 0:01:46]}  Kh7 {[%clk 0:01:31]} 20. Rae1 {[%clk 0:01:37]}  Rxe1 {[%clk 0:01:27]} 21. Rxe1 {[%clk 0:01:25]}  Rxf3 {[%clk 0:01:22]} 22. Ne5 {[%clk 0:01:21]}  Qe4 {[%clk 0:00:32]} 23. Nxf3 {[%clk 0:01:17]} 1-0


[Site "https://www.chess.com"]

[Event "Titled Tuesday Blitz May 17 Late 2022"]
[White "Solon, Nathan"]
[Black "Tang, Andrew"]
[WhiteFideId "2017229"]
[BlackFideId "2059630"]
[WhiteElo "2533"]
[BlackElo "2584"]
[Result "1-0"]
[Round "01"]
[TimeControl "180+1"]
[Date "2022.05.17"]
[WhiteClock "0:00:53"]
[BlackClock "0:01:16"]

1. d4 {[%clk 0:02:59]}  d5 {[%clk 0:02:58]} 2. Nc3 {[%clk 0:02:59]}  Nf6 {[%clk 0:02:58]} 3. Bf4 {[%clk 0:02:59]}  e6 {[%clk 0:02:58]} 4. Nb5 {[%clk 0:02:59]}  Na6 {[%clk 0:02:50]} 5. e3 {[%clk 0:02:59]}  Be7 {[%clk 0:02:48]} 6. Nf3 {[%clk 0:02:59]}  O-O {[%clk 0:02:48]} 7. Bd3 {[%clk 0:02:54]}  c5 {[%clk 0:02:39]} 8. c3 {[%clk 0:02:51]}  Bd7 {[%clk 0:02:13]} 9. a4 {[%clk 0:02:51]}  Bc6 {[%clk 0:02:05]} 10. Ne5 {[%clk 0:02:49]}  c4 {[%clk 0:02:01]} 11. Bc2 {[%clk 0:02:33]}  Qb6 {[%clk 0:02:00]} 12. g4 {[%clk 0:02:21]}  Nd7 {[%clk 0:01:50]} 13. Nxd7 {[%clk 0:02:04]}  Bxd7 {[%clk 0:01:49]} 14. g5 {[%clk 0:01:55]}  Bxb5 {[%clk 0:01:47]} 15. axb5 {[%clk 0:01:56]}  Qxb5 {[%clk 0:01:41]} 16. Ra2 {[%clk 0:01:49]}  Rfd8 {[%clk 0:01:39]} 17. h4 {[%clk 0:01:46]}  Bd6 {[%clk 0:01:39]} 18. g6 {[%clk 0:01:34]}  hxg6 {[%clk 0:01:30]} 19. h5 {[%clk 0:01:34]}  Bxf4 {[%clk 0:01:30]} 20. exf4 {[%clk 0:01:35]}  gxh5 {[%clk 0:01:24]} 21. Qxh5 {[%clk 0:01:31]}  Kf8 {[%clk 0:01:24]} 22. Qg5 {[%clk 0:01:25]}  Ke8 {[%clk 0:01:24]} 23. Ba4 {[%clk 0:01:23]}  Qxa4 {[%clk 0:01:21]} 24. Rxa4 {[%clk 0:01:24]}  Kd7 {[%clk 0:01:21]} 25. Qxg7 {[%clk 0:01:23]}  Rf8 {[%clk 0:01:21]} 26. Rh7 {[%clk 0:01:15]}  Rae8 {[%clk 0:01:21]} 27. Qf6 {[%clk 0:01:13]}  Re7 {[%clk 0:01:20]} 28. Kd2 {[%clk 0:01:13]}  Ke8 {[%clk 0:01:19]} 29. Rh8 {[%clk 0:01:10]}  Rxh8 {[%clk 0:01:19]} 30. Qxh8+ {[%clk 0:01:11]}  Kd7 {[%clk 0:01:19]} 31. Qa8 {[%clk 0:01:10]}  Kc7 {[%clk 0:01:19]} 32. Qxa7 {[%clk 0:01:08]}  Nb8 {[%clk 0:01:19]} 33. Rb4 {[%clk 0:01:03]}  Kc8 {[%clk 0:01:19]} 34. Qb6 {[%clk 0:00:58]}  Nc6 {[%clk 0:01:19]} 35. Ra4 {[%clk 0:00:59]}  Rc7 {[%clk 0:01:16]} 36. Ra1 {[%clk 0:00:55]}  Kd7 {[%clk 0:01:16]} 37. Rh1 {[%clk 0:00:55]}  Ke7 {[%clk 0:01:16]} 38. Qxc7+ {[%clk 0:00:53]} 1-0


[Site "https://www.chess.com"]

[Event "Titled Tuesday Blitz May 17 Late 2022"]
[White "Svane, Frederik"]
[Black "Saldano Dayer, Horacio"]
[WhiteFideId "12923044"]
[BlackFideId "103411"]
[WhiteElo "2459"]
[BlackElo "2419"]
[Result "1-0"]
[Round "01"]
[TimeControl "180+1"]
[Date "2022.05.17"]
[WhiteClock "0:01:53"]
[BlackClock "0:00:17"]

1. e4 {[%clk 0:03:00]}  e5 {[%clk 0:02:55]} 2. Nf3 {[%clk 0:02:59]}  Nf6 {[%clk 0:02:47]} 3. Nc3 {[%clk 0:02:59]}  Nc6 {[%clk 0:02:40]} 4. h3 {[%clk 0:02:59]}  g6 {[%clk 0:02:15]} 5. d4 {[%clk 0:02:58]}  exd4 {[%clk 0:02:13]} 6. Nxd4 {[%clk 0:02:58]}  Bg7 {[%clk 0:02:14]} 7. Be3 {[%clk 0:02:59]}  O-O {[%clk 0:02:12]} 8. Qd2 {[%clk 0:02:59]}  Re8 {[%clk 0:02:12]} 9. O-O-O {[%clk 0:02:41]}  Nxe4 {[%clk 0:02:09]} 10. Nxe4 {[%clk 0:02:40]}  Rxe4 {[%clk 0:02:10]} 11. Nf3 {[%clk 0:02:37]}  Qf6 {[%clk 0:01:41]} 12. c3 {[%clk 0:02:38]}  d6 {[%clk 0:01:30]} 13. Bd3 {[%clk 0:02:38]}  Re8 {[%clk 0:01:28]} 14. Rhe1 {[%clk 0:02:35]}  Ne5 {[%clk 0:00:58]} 15. Nd4 {[%clk 0:02:35]}  Nxd3+ {[%clk 0:00:55]} 16. Qxd3 {[%clk 0:02:36]}  Bd7 {[%clk 0:00:54]} 17. Qd2 {[%clk 0:02:35]}  Qe5 {[%clk 0:00:35]} 18. Bh6 {[%clk 0:02:30]}  Bxh6 {[%clk 0:00:35]} 19. Qxh6 {[%clk 0:02:31]}  Qxe1 {[%clk 0:00:35]} 20. Rxe1 {[%clk 0:02:32]}  Rxe1+ {[%clk 0:00:35]} 21. Kc2 {[%clk 0:02:30]}  Rae8 {[%clk 0:00:35]} 22. Qf4 {[%clk 0:02:26]}  R1e5 {[%clk 0:00:32]} 23. g4 {[%clk 0:02:05]}  a5 {[%clk 0:00:30]} 24. Kb3 {[%clk 0:01:58]}  b5 {[%clk 0:00:28]} 25. h4 {[%clk 0:01:56]}  a4+ {[%clk 0:00:25]} 26. Ka3 {[%clk 0:01:56]}  c5 {[%clk 0:00:19]} 27. Nc2 {[%clk 0:01:56]}  f5 {[%clk 0:00:17]} 28. gxf5 {[%clk 0:01:53]} 1-0


[Site "https://www.chess.com"]